[Event "2nd Turkish League 2017"]
[Site "Konya"]
[Date "2017.07.21"]
[Round "7"]
[White "Bolu, Yagmur"]
[Black "Demir, Aleyna"]
[Result "1-0"]
[ECO "E33"]
[WhiteElo "1464"]
[BlackElo "1439"]
[Annotator "NA"]
[PlyCount "83"]
[EventType "team-tourn"]
[EventCountry "TUR"]
[SourceTitle "playchess.com"]
[Source "ChessBase"]
[SourceQuality "1"]
[TimeControl "5400+30"]

1. d4 {[%emt 0:00:30]} Nf6 {[%emt 0:01:00]} 2. c4 {[%emt 0:00:30]} e6 {[%emt 0:00:30]} 3. Nf3 {[%emt 0:00:30]} d5 {[%emt 0:00:30]} 4. Nc3 {[%emt 0:01:30]} Bb4 {[%emt 0:00:30]} 5. Qc2 {[%emt 0:00:30]} Nc6 {[%emt 0:03:30]} 6. e3 {[%emt 0:00:30]} O-O {[%emt 0:00:30]} 7. Bd3 {[%emt 0:02:30]} dxc4 {[%emt 0:00:30]} 8. Bxc4 {[%emt 0:00:00]} Re8 {[%emt 0:00:30]} 9. O-O {[%emt 0:03:00]} Bxc3 {[%emt 0:07:30]} 10. Qxc3 {[%emt 0:04:30]} Nd5 {[%emt 0:05:30]} 11. Qd2 {[%emt 0:04:30]} Nb6 {[%emt 0:04:30]} 12. Bb5 {[%emt 0:03:30]} Bd7 {[%emt 0:00:30]} 13. b3 {[%emt 0:03:30]} Ne7 {[%emt 0:08:30]} 14. Bd3 {[%emt 0:08:30]} Bc6 {[%emt 0:12:30]} 15. Ne5 {[%emt 0:02:30]} Nd7 {[%emt 0:04:30]} 16. Nxc6 {[%emt 0:03:30]} Nxc6 {[%emt 0:00:30]} 17. Be4 {[%emt 0:00:30]} Nf6 {[%emt 0:11:30]} 18. Bxc6 {[%emt 0:03:30]} bxc6 {[%emt 0:00:30]} 19. Qc2 {[%emt 0:01:30]} Qd6 {[%emt 0:01:30]} 20. h3 {[%emt 0:06:30]} e5 {[%emt 0:06:30]} 21. Bb2 {[%emt 0:10:30]} exd4 {[%emt 0:07:30]} 22. Bxd4 {[%emt 0:00:30]} Ne4 {[%emt 0:01:30]} 23. Rac1 {[%emt 0:07:30]} Re6 {[%emt 0:01:30]} 24. Rfd1 {[%emt 0:04:30]} Qe7 {[%emt 0:02:06]} 25. Bc5 {[%emt 0:03:30]} Qh4 {[%emt 0:04:04]} 26. Rd4 {[%emt 0:03:30]} Rae8 {[%emt 0:04:32]} 27. f3 {[%emt 0:03:20]} Qg5 {[%emt 0:04:28]} 28. Rxe4 {[%emt 0:01:13]} Rxe4 {[%emt 0:00:34]} 29. fxe4 {[%emt 0:00:00]} a6 {[%emt 0:01:28]} 30. Qc4 {[%emt 0:03:54]} Qg6 {[%emt 0:01:16]} 31. Rd1 {[%emt 0:01:24]} h6 {[%emt 0:01:26]} 32. Rd7 {[%emt 0:02:30]} Qf6 {[%emt 0:01:45]} 33. Bd4 {[%emt 0:01:23]} Qg6 {[%emt 0:00:18]} 34. Rxc7 {[%emt 0:01:28]} Rxe4 {[%emt 0:01:20]} 35. Qxc6 {[%emt 0:01:04]} Re6 {[%emt 0:00:28]} 36. Rc8+ {[%emt 0:01:37]} Kh7 {[%emt 0:00:12]} 37. Qc2 {[%emt 0:00:45]} Re4 {[%emt 0:01:05]} 38. Rc6 {[%emt 0:00:43]} f6 {[%emt 0:00:49]} 39. Rxa6 {[%emt 0:00:27]} Qe8 {[%emt 0:00:43]} 40. Ra7 {[%emt 0:01:00]} Kh8 {[%emt 0:00:30]} 41. Rc7 {[%emt 0:00:30]} Kh7 {[%emt 0:00:30]} 42. Bxf6 {[%emt 0:00:49]} 1-0

[Event "2nd Turkish League 2017"]
[Site "Konya"]
[Date "2017.07.21"]
[Round "7"]
[White "Tutuncu, Inci"]
[Black "Ilkbahar, Nimet Seray"]
[Result "0-1"]
[ECO "A14"]
[WhiteElo "1436"]
[BlackElo "1618"]
[Annotator "NA"]
[PlyCount "84"]
[EventType "team-tourn"]
[EventCountry "TUR"]
[SourceTitle "playchess.com"]
[Source "ChessBase"]
[SourceQuality "1"]
[TimeControl "5400+30"]

1. Nf3 {[%emt 0:00:30]} Nf6 {[%emt 0:01:00]} 2. g3 {[%emt 0:00:00]} c5 {[%emt 0:00:30]} 3. b3 {[%emt 0:01:00]} d5 {[%emt 0:00:00]} 4. Bg2 {[%emt 0:01:30]} e6 {[%emt 0:01:00]} 5. Bb2 {[%emt 0:02:30]} Nc6 {[%emt 0:00:30]} 6. d3 {[%emt 0:00:30]} Be7 {[%emt 0:01:30]} 7. O-O {[%emt 0:00:30]} O-O {[%emt 0:00:30]} 8. Nbd2 {[%emt 0:00:00]} b6 {[%emt 0:00:30]} 9. c4 {[%emt 0:02:00]} Bb7 {[%emt 0:00:30]} 10. e4 {[%emt 0:05:30]} Nb4 {[%emt 0:13:30]} 11. Qb1 {[%emt 0:00:30]} Nxd3 {[%emt 0:18:30]} 12. e5 {[%emt 0:22:30]} Nxb2 {[%emt 0:00:30]} 13. Ng5 {[%emt 0:00:30]} Ne4 {[%emt 0:04:30]} 14. Ngxe4 {[%emt 0:00:30]} dxe4 {[%emt 0:00:30]} 15. Qxb2 {[%emt 0:00:30]} f5 {[%emt 0:03:30]} 16. Rad1 {[%emt 0:01:30]} Qc7 {[%emt 0:00:30]} 17. Nb1 {[%emt 0:00:30]} Rad8 {[%emt 0:00:30]} 18. Na3 {[%emt 0:03:30]} a6 {[%emt 0:00:30]} 19. Nc2 {[%emt 0:02:30]} g6 {[%emt 0:10:30]} 20. Ne3 {[%emt 0:04:30]} Bg5 {[%emt 0:03:30]} 21. b4 {[%emt 0:09:30]} cxb4 {[%emt 0:04:30]} 22. Qxb4 {[%emt 0:00:30]} Rxd1 {[%emt 0:13:30]} 23. Rxd1 {[%emt 0:00:30]} Rd8 {[%emt 0:00:30]} 24. Rd6 {[%emt 0:11:30]} Rxd6 {[%emt 0:00:30]} 25. Qxd6 {[%emt 0:00:30]} Qxd6 {[%emt 0:01:30]} 26. exd6 {[%emt 0:00:30]} Bxe3 {[%emt 0:00:30]} 27. fxe3 {[%emt 0:00:30]} Kf8 {[%emt 0:00:30]} 28. Kf1 {[%emt 0:03:30]} Ke8 {[%emt 0:00:30]} 29. Ke2 {[%emt 0:00:30]} Kd7 {[%emt 0:00:45]} 30. Kd2 {[%emt 0:00:30]} Kxd6 {[%emt 0:00:23]} 31. Kc3 {[%emt 0:00:30]} Kc5 {[%emt 0:01:13]} 32. Bf1 {[%emt 0:00:30]} a5 {[%emt 0:01:03]} 33. Be2 {[%emt 0:03:30]} e5 {[%emt 0:01:38]} 34. a3 {[%emt 0:02:30]} g5 {[%emt 0:02:56]} 35. Kd2 {[%emt 0:03:32]} Ba6 {[%emt 0:00:41]} 36. Bh5 {[%emt 0:02:51]} f4 {[%emt 0:01:15]} 37. Ke2 {[%emt 0:01:17]} f3+ {[%emt 0:00:48]} 38. Kf2 {[%emt 0:01:34]} Bxc4 {[%emt 0:00:17]} 39. Bxf3 {[%emt 0:02:34]} exf3 {[%emt 0:00:30]} 40. Kxf3 {[%emt 0:00:00]} Bd3 {[%emt 0:00:17]} 41. Kg4 {[%emt 0:00:18]} Bg6 {[%emt 0:00:19]} 42. Kxg5 {[%emt 0:00:30]} b5 {[%emt 0:00:00]} 0-1

[Event "2nd Turkish League 2017"]
[Site "Konya"]
[Date "2017.07.21"]
[Round "7"]
[White "Hafizoglu, Bengi"]
[Black "Catal, Uktenur"]
[Result "0-1"]
[ECO "A45"]
[WhiteElo "1415"]
[BlackElo "1613"]
[Annotator "NA"]
[PlyCount "98"]
[EventType "team-tourn"]
[EventCountry "TUR"]
[SourceTitle "playchess.com"]
[Source "ChessBase"]
[SourceQuality "1"]
[TimeControl "5400+30"]

1. d4 {[%emt 0:00:30]} Nf6 {[%emt 0:01:00]} 2. Bg5 {[%emt 0:00:30]} Ne4 {[%emt 0:00:30]} 3. Bf4 {[%emt 0:00:00]} c5 {[%emt 0:00:30]} 4. f3 {[%emt 0:00:00]} Qa5+ {[%emt 0:00:30]} 5. c3 {[%emt 0:00:30]} Nf6 {[%emt 0:00:30]} 6. Nd2 {[%emt 0:03:30]} cxd4 {[%emt 0:00:30]} 7. Nb3 {[%emt 0:00:30]} Qb6 {[%emt 0:05:30]} 8. Qxd4 {[%emt 0:01:30]} Qxd4 {[%emt 0:01:30]} 9. cxd4 {[%emt 0:00:30]} d5 {[%emt 0:10:30]} 10. e3 {[%emt 0:10:30]} a6 {[%emt 0:01:30]} 11. Bd3 {[%emt 0:01:30]} Nc6 {[%emt 0:01:30]} 12. a3 {[%emt 0:00:30]} e6 {[%emt 0:00:30]} 13. e4 {[%emt 0:08:30]} dxe4 {[%emt 0:00:30]} 14. fxe4 {[%emt 0:01:30]} Be7 {[%emt 0:00:30]} 15. Nf3 {[%emt 0:01:30]} h6 {[%emt 0:01:30]} 16. h3 {[%emt 0:01:30]} g5 {[%emt 0:04:30]} 17. Bh2 {[%emt 0:10:30]} O-O {[%emt 0:08:30]} 18. O-O {[%emt 0:05:30]} Rd8 {[%emt 0:15:30]} 19. Rad1 {[%emt 0:06:30]} Kg7 {[%emt 0:00:30]} 20. Bc2 {[%emt 0:01:30]} g4 {[%emt 0:07:30]} 21. hxg4 {[%emt 0:03:30]} Nxg4 {[%emt 0:00:30]} 22. Bf4 {[%emt 0:02:30]} f6 {[%emt 0:04:30]} 23. d5 {[%emt 0:14:30]} exd5 {[%emt 0:02:30]} 24. exd5 {[%emt 0:01:30]} Nce5 {[%emt 0:00:30]} 25. Rfe1 {[%emt 0:06:30]} Bd6 {[%emt 0:00:30]} 26. Nxe5 {[%emt 0:00:41]} fxe5 {[%emt 0:01:30]} 27. Bg3 {[%emt 0:00:49]} h5 {[%emt 0:10:30]} 28. Bh4 {[%emt 0:02:57]} Re8 {[%emt 0:01:11]} 29. Be4 {[%emt 0:04:43]} b6 {[%emt 0:06:17]} 30. Rd2 {[%emt 0:03:57]} Bd7 {[%emt 0:00:36]} 31. Bf2 {[%emt 0:02:31]} Nxf2 {[%emt 0:01:38]} 32. Kxf2 {[%emt 0:00:30]} Rf8+ {[%emt 0:00:00]} 33. Kg1 {[%emt 0:00:00]} Rf4 {[%emt 0:02:00]} 34. Rf2 {[%emt 0:01:12]} Raf8 {[%emt 0:01:43]} 35. Rxf4 {[%emt 0:00:57]} Rxf4 {[%emt 0:00:18]} 36. Bf3 {[%emt 0:00:25]} h4 {[%emt 0:00:21]} 37. Re4 {[%emt 0:00:00]} Kf6 {[%emt 0:01:40]} 38. Kf2 {[%emt 0:01:58]} Kf5 {[%emt 0:00:56]} 39. Nd2 {[%emt 0:00:43]} Bc5+ {[%emt 0:00:27]} 40. Ke1 {[%emt 0:00:34]} Bd4 {[%emt 0:06:14]} 41. b3 {[%emt 0:01:34]} Bc3 {[%emt 0:00:21]} 42. Rxf4+ {[%emt 0:00:23]} Kxf4 {[%emt 0:00:04]} 43. Ke2 {[%emt 0:01:20]} Bxd2 {[%emt 0:00:30]} 44. Kxd2 {[%emt 0:00:30]} h3 {[%emt 0:00:00]} 45. Ke2 {[%emt 0:00:00]} h2 {[%emt 0:02:54]} 46. g3+ {[%emt 0:01:02]} Kxg3 {[%emt 0:00:11]} 47. Bh1 {[%emt 0:00:41]} Kf4 {[%emt 0:00:39]} 48. Kf2 {[%emt 0:00:30]} e4 {[%emt 0:00:00]} 49. Ke2 {[%emt 0:01:02]} Ke5 {[%emt 0:00:23]} 0-1

[Event "2nd Turkish League 2017"]
[Site "Konya"]
[Date "2017.07.22"]
[Round "8"]
[White "Lomsadze, Davit"]
[Black "Rzayev, Bahruz"]
[Result "1/2-1/2"]
[ECO "A08"]
[WhiteElo "2335"]
[BlackElo "2386"]
[Annotator "NA"]
[PlyCount "62"]
[EventType "team-tourn"]
[EventCountry "TUR"]
[SourceTitle "playchess.com"]
[Source "ChessBase"]
[SourceQuality "1"]
[TimeControl "5400+30"]

1. Nf3 {[%emt 0:00:30]} d5 {[%emt 0:01:00]} 2. g3 {[%emt 0:00:30]} c5 {[%emt 0:00:30]} 3. Bg2 {[%emt 0:00:30]} Nc6 {[%emt 0:00:30]} 4. O-O {[%emt 0:00:00]} e5 {[%emt 0:00:00]} 5. d3 {[%emt 0:00:00]} Nf6 {[%emt 0:00:00]} 6. Bg5 {[%emt 0:03:30]} Be7 {[%emt 0:03:30] LiveBook: 35 Games} 7. Nbd2 {[%emt 0:05:30]} O-O {[%emt 0:00:30]} 8. e4 {[%emt 0:00:30]} Be6 {[%emt 0:05:30]} 9. Bxf6 {[%emt 0:04:30]} Bxf6 {[%emt 0:00:30]} 10. exd5 {[%emt 0:00:30]} Bxd5 {[%emt 0:00:30]} 11. Re1 {[%emt 0:08:30]} Re8 {[%emt 0:07:30]} 12. Ne4 {[%emt 0:02:30]} Bxe4 {[%emt 0:04:30]} 13. dxe4 $11 {[%emt 0:04:30]} b5 {[%emt 0:08:30]} 14. Qxd8 {[%emt 0:00:30]} Rexd8 {[%emt 0:00:30]} 15. Red1 {[%emt 0:00:30]} Rxd1+ {[%emt 0:00:30]} 16. Rxd1 {[%emt 0:02:30]} Rd8 {[%emt 0:00:30]} 17. Rxd8+ {[%emt 0:01:30]} Bxd8 {[%emt 0:00:30]} 18. Bf1 {[%emt 0:00:30]} b4 {[%emt 0:01:30]} 19. Bb5 {[%emt 0:01:30]} Nd4 {[%emt 0:00:30]} 20. Nxd4 {[%emt 0:00:00]} cxd4 {[%emt 0:00:00]} 21. h4 {[%emt 0:00:00]} Kf8 {[%emt 0:01:00]} 22. Kg2 {[%emt 0:00:30]} Ke7 {[%emt 0:00:30]} 23. Bc4 {[%emt 0:00:30]} a5 {[%emt 0:00:30]} 24. b3 {[%emt 0:00:30]} h5 {[%emt 0:00:30]} 25. Be2 {[%emt 0:00:30]} g6 {[%emt 0:00:00]} 26. Bd3 {[%emt 0:00:30]} Kf6 {[%emt 0:00:00]} 27. Bc4 {[%emt 0:00:30]} Bb6 {[%emt 0:00:30]} 28. Kf3 {[%emt 0:00:30]} Kg7 {[%emt 0:00:30]} 29. Bd3 {[%emt 0:00:00]} f6 {[%emt 0:00:00]} 30. Kg2 {[%emt 0:00:00]} Kh6 {[%emt 0:00:00]} 31. Kh3 {[%emt 0:00:30]} g5 {[%emt 0:00:00]} 1/2-1/2

[Event "2nd Turkish League 2017"]
[Site "Konya"]
[Date "2017.07.22"]
[Round "8"]
[White "Aytekin, Murat Eren"]
[Black "Ozdemir, Ali"]
[Result "1-0"]
[ECO "D17"]
[WhiteElo "2201"]
[BlackElo "1762"]
[Annotator "NA"]
[PlyCount "59"]
[EventType "team-tourn"]
[EventCountry "TUR"]
[SourceTitle "playchess.com"]
[Source "ChessBase"]
[SourceQuality "1"]
[TimeControl "5400+30"]

1. d4 {[%emt 0:00:30]} d5 {[%emt 0:01:00]} 2. c4 {[%emt 0:00:00]} c6 {[%emt 0:00:30]} 3. Nf3 {[%emt 0:00:00]} Nf6 {[%emt 0:00:30]} 4. Nc3 {[%emt 0:00:00]} dxc4 {[%emt 0:00:30]} 5. a4 {[%emt 0:00:00]} Bf5 {[%emt 0:00:30]} 6. Ne5 {[%emt 0:00:30]} Nbd7 {[%emt 0:00:00]} 7. Nxc4 {[%emt 0:00:00]} Qc7 {[%emt 0:00:00]} 8. g3 {[%emt 0:00:00]} e5 {[%emt 0:00:30]} 9. dxe5 {[%emt 0:00:30]} Nxe5 {[%emt 0:00:30]} 10. Bf4 {[%emt 0:00:30]} Nfd7 {[%emt 0:00:30]} 11. Bg2 {[%emt 0:00:00]} g5 {[%emt 0:00:00]} 12. Ne3 {[%emt 0:00:00]} gxf4 {[%emt 0:00:00]} 13. Nxf5 {[%emt 0:00:00]} O-O-O {[%emt 0:00:30]} 14. O-O {[%emt 0:03:00] LiveBook: 51 Games} ({But not} 14. gxf4 Nc5 $15) 14... Nc5 {[%emt 0:02:30]} 15. Qc2 {[%emt 0:00:30]} fxg3 {[%emt 0:00:30]} 16. hxg3 {[%emt 0:00:30]} a5 {[%emt 0:00:30]} 17. Rfd1 {[%emt 0:03:30]} h5 {[%emt 0:01:30]} 18. Rxd8+ {[%emt 0:09:30]} Qxd8 {[%emt 0:03:30]} 19. Ne4 {[%emt 0:16:30]} Nxe4 {[%emt 0:04:30]} 20. Qxe4 $11 {[%emt 0:03:30]} Qf6 {[%emt 0:02:30]} 21. Rc1 {[%emt 0:04:30]} Bb4 {[%emt 0:19:30]} 22. Nd4 {[%emt 0:17:30]} Rd8 {[%emt 0:24:30]} 23. e3 {[%emt 0:02:30]} Rd6 {[%emt 0:17:52]} 24. b3 {[%emt 0:16:30]} Ng4 {[%emt 0:12:15]} 25. Bf3 {[%emt 0:02:30]} Qg6 {[%emt 0:02:53]} 26. Nb5 {[%emt 0:06:30]} Re6 {[%emt 0:02:58]} 27. Qd4 {[%emt 0:01:39]} Ne5 {[%emt 0:02:42]} 28. Bg2 {[%emt 0:03:01]} Nd7 {[%emt 0:00:32]} 29. Rd1 {[%emt 0:02:44]} Re7 {[%emt 0:00:59]} 30. Qh8+ {[%emt 0:00:08]} 1-0

[Event "2nd Turkish League 2017"]
[Site "Konya"]
[Date "2017.07.22"]
[Round "8"]
[White "Ataman, Alper Efe"]
[Black "Yalim, Suleyman"]
[Result "1/2-1/2"]
[ECO "D36"]
[WhiteElo "2175"]
[BlackElo "2039"]
[Annotator "NA"]
[PlyCount "60"]
[EventType "team-tourn"]
[EventCountry "TUR"]
[SourceTitle "playchess.com"]
[Source "ChessBase"]
[SourceQuality "1"]
[TimeControl "5400+30"]

1. d4 {[%emt 0:00:30]} Nf6 {[%emt 0:01:00]} 2. c4 {[%emt 0:00:30]} e6 {[%emt 0:00:30]} 3. Nc3 {[%emt 0:00:30]} d5 {[%emt 0:00:30]} 4. cxd5 {[%emt 0:00:30]} exd5 {[%emt 0:00:30]} 5. Bg5 {[%emt 0:00:30]} Nbd7 {[%emt 0:11:30]} 6. e3 {[%emt 0:02:30]} c6 {[%emt 0:00:00]} 7. Qc2 {[%emt 0:01:30]} Bd6 {[%emt 0:13:00]} 8. Bd3 {[%emt 0:06:30]} Qe7 {[%emt 0:04:30]} 9. Nge2 {[%emt 0:05:30]} Nf8 {[%emt 0:14:30]} 10. O-O-O {[%emt 0:06:30]} Ne6 {[%emt 0:08:30]} 11. Bh4 {[%emt 0:01:30]} g5 {[%emt 0:05:30]} 12. Bg3 {[%emt 0:01:30]} Bd7 {[%emt 0:01:30]} 13. Kb1 {[%emt 0:04:30]} h5 {[%emt 0:02:30]} 14. h4 {[%emt 0:05:30]} g4 {[%emt 0:08:30]} 15. Rhe1 {[%emt 0:05:30]} Bxg3 {[%emt 0:15:57]} 16. Nxg3 {[%emt 0:01:30]} O-O-O {[%emt 0:00:28]} 17. Nf5 {[%emt 0:07:30]} Qf8 {[%emt 0:00:03]} 18. Qb3 {[%emt 0:07:30]} Ng7 {[%emt 0:01:02]} 19. Ng3 {[%emt 0:01:30]} Kb8 {[%emt 0:00:51]} 20. Na4 {[%emt 0:01:30]} Ka8 {[%emt 0:00:27]} 21. Nc5 {[%emt 0:01:30]} Bc8 {[%emt 0:00:02]} 22. Rc1 {[%emt 0:00:30]} Qd6 {[%emt 0:00:41]} 23. Qa4 {[%emt 0:02:30]} Nd7 {[%emt 0:00:55]} 24. Rc3 {[%emt 0:01:30]} Nxc5 {[%emt 0:02:44]} 25. dxc5 {[%emt 0:00:30]} Qf6 {[%emt 0:01:10]} 26. Ra3 {[%emt 0:02:30]} a6 {[%emt 0:00:02]} 27. Qb4 {[%emt 0:03:30]} Rhe8 {[%emt 0:02:38]} 28. Bxa6 {[%emt 0:03:30]} bxa6 {[%emt 0:00:45]} 29. Qb6 {[%emt 0:08:06]} Bb7 {[%emt 0:00:27]} 30. Rxa6+ {[%emt 0:00:30]} Bxa6 {[%emt 0:00:08]} 1/2-1/2

[Event "2nd Turkish League 2017"]
[Site "Konya"]
[Date "2017.07.22"]
[Round "8"]
[White "Duman, Aydin"]
[Black "Koksal, Recep"]
[Result "1-0"]
[ECO "C50"]
[WhiteElo "2056"]
[BlackElo "1736"]
[Annotator "NA"]
[PlyCount "223"]
[EventType "team-tourn"]
[EventCountry "TUR"]
[SourceTitle "playchess.com"]
[Source "ChessBase"]
[SourceQuality "1"]
[TimeControl "5400+30"]

1. e4 {[%emt 0:00:30]} e5 {[%emt 0:01:00]} 2. Nf3 {[%emt 0:00:00]} Nc6 {[%emt 0:00:30]} 3. Bc4 {[%emt 0:00:00]} Bc5 {[%emt 0:00:30]} 4. d3 {[%emt 0:00:30]} Nf6 {[%emt 0:00:30]} 5. a4 {[%emt 0:00:00]} a5 {[%emt 0:05:30]} 6. c3 {[%emt 0:01:00]} O-O {[%emt 0:00:30]} 7. Bg5 {[%emt 0:00:30]} h6 {[%emt 0:00:30]} 8. Bh4 {[%emt 0:00:30]} Be7 {[%emt 0:00:30]} 9. Na3 {[%emt 0:02:30]} d6 {[%emt 0:09:30]} 10. Qb3 {[%emt 0:00:30]} Nd7 {[%emt 0:02:30]} 11. Bg3 {[%emt 0:00:30]} Nc5 {[%emt 0:00:30]} 12. Qc2 {[%emt 0:03:30]} Bg4 {[%emt 0:01:30]} 13. Nd2 {[%emt 0:01:30]} Bg5 {[%emt 0:03:30]} 14. O-O {[%emt 0:01:30]} Ne6 {[%emt 0:04:30]} 15. f3 {[%emt 0:02:30]} Bh5 {[%emt 0:00:00]} 16. Bxe6 {[%emt 0:10:30]} fxe6 {[%emt 0:00:00]} 17. Ndc4 {[%emt 0:01:30]} Bf4 {[%emt 0:05:30]} 18. Bxf4 {[%emt 0:00:30]} Rxf4 {[%emt 0:00:30]} 19. Nb5 {[%emt 0:03:30]} Qe7 {[%emt 0:05:30]} 20. d4 {[%emt 0:01:30]} Raf8 {[%emt 0:05:30]} 21. Ne3 {[%emt 0:05:30]} Qg5 {[%emt 0:01:30]} 22. Nxc7 {[%emt 0:18:30]} Rxf3 {[%emt 0:07:30]} 23. Rxf3 {[%emt 0:00:30]} Bxf3 {[%emt 0:08:30]} 24. Re1 {[%emt 0:05:30]} Bg4 {[%emt 0:02:30]} 25. d5 {[%emt 0:05:30]} Nd8 {[%emt 0:01:30]} 26. Nxg4 {[%emt 0:03:30]} Qxg4 {[%emt 0:00:30]} 27. dxe6 {[%emt 0:01:30]} Nxe6 {[%emt 0:04:30]} 28. Nxe6 {[%emt 0:02:30]} Qxe6 {[%emt 0:01:30]} 29. h3 {[%emt 0:03:30]} Qc4 {[%emt 0:00:30]} 30. Qd2 {[%emt 0:02:30]} Qc5+ {[%emt 0:00:30]} 31. Qe3 {[%emt 0:00:30]} Qc6 {[%emt 0:03:30]} 32. b3 {[%emt 0:01:30]} b5 {[%emt 0:01:30]} 33. axb5 {[%emt 0:04:20]} Qxb5 {[%emt 0:00:30]} 34. c4 {[%emt 0:01:34]} Qb4 {[%emt 0:00:30]} 35. Rd1 {[%emt 0:02:02]} Rf6 {[%emt 0:02:30]} 36. Ra1 {[%emt 0:01:52]} Rf4 {[%emt 0:04:32]} 37. g3 {[%emt 0:00:30]} Rf6 {[%emt 0:00:00]} 38. Ra4 {[%emt 0:00:17]} Qb8 {[%emt 0:00:01]} 39. Rxa5 {[%emt 0:00:50]} Rf3 {[%emt 0:03:33]} 40. Qxf3 {[%emt 0:00:38]} Qb6+ {[%emt 0:00:07]} 41. Kg2 {[%emt 0:01:30]} Qxa5 {[%emt 0:00:10]} 42. Qd3 {[%emt 0:00:29]} Kh7 {[%emt 0:02:09]} 43. h4 {[%emt 0:00:31]} Qa2+ {[%emt 0:04:21]} 44. Kh3 {[%emt 0:00:22]} h5 {[%emt 0:01:02]} 45. Qf3 {[%emt 0:02:32]} Kg8 {[%emt 0:04:44]} 46. g4 {[%emt 0:01:04]} hxg4+ {[%emt 0:01:10]} 47. Kxg4 {[%emt 0:00:06]} Qd2 {[%emt 0:00:18]} 48. h5 {[%emt 0:00:52]} Qh6 {[%emt 0:02:38]} 49. b4 {[%emt 0:01:32]} Qe6+ {[%emt 0:00:26]} 50. Kg5 {[%emt 0:01:04]} Qe7+ {[%emt 0:01:56]} 51. Kg4 {[%emt 0:00:05]} Qe6+ {[%emt 0:00:00]} 52. Qf5 {[%emt 0:02:51]} Qxc4 {[%emt 0:00:01]} 53. h6 {[%emt 0:01:41]} Qe2+ {[%emt 0:01:21]} 54. Qf3 {[%emt 0:00:07]} Qc4 {[%emt 0:00:04]} 55. Kh5 {[%emt 0:00:56]} gxh6 {[%emt 0:01:03]} 56. Qg4+ {[%emt 0:02:06]} Kf8 {[%emt 0:00:19]} 57. Kxh6 {[%emt 0:02:14]} Ke8 {[%emt 0:00:19]} 58. Kg7 {[%emt 0:01:20]} Qf7+ {[%emt 0:00:48]} 59. Kh8 {[%emt 0:00:38]} Qf8+ {[%emt 0:00:25]} 60. Kh7 {[%emt 0:00:09]} Qf7+ {[%emt 0:00:24]} 61. Kh6 {[%emt 0:00:25]} Qf4+ {[%emt 0:00:29]} 62. Kh5 {[%emt 0:00:49]} Qf7+ {[%emt 0:01:30]} 63. Kg5 {[%emt 0:00:34]} Qe7+ {[%emt 0:00:24]} 64. Kh6 {[%emt 0:00:32]} Qf8+ {[%emt 0:00:24]} 65. Kh5 {[%emt 0:00:17]} Qh8+ {[%emt 0:00:23]} 66. Kg5 {[%emt 0:00:11]} Qg7+ {[%emt 0:00:59]} 67. Kh4 {[%emt 0:00:11]} Qf6+ {[%emt 0:00:48]} 68. Kg3 {[%emt 0:00:20]} Qf1 {[%emt 0:01:10]} 69. Qe6+ {[%emt 0:00:20]} Kd8 {[%emt 0:00:38]} 70. Qxd6+ {[%emt 0:00:08]} Kc8 {[%emt 0:00:12]} 71. Qc5+ {[%emt 0:00:33]} Kd7 {[%emt 0:00:36]} 72. Qd5+ {[%emt 0:00:30]} Kc8 {[%emt 0:00:05]} 73. Kg4 {[%emt 0:01:33]} Qf4+ {[%emt 0:00:52]} 74. Kh5 {[%emt 0:00:30]} Kc7 {[%emt 0:00:19]} 75. Kg6 {[%emt 0:00:00]} Kb6 {[%emt 0:00:29]} 76. Qc5+ {[%emt 0:00:09]} Kb7 {[%emt 0:00:22]} 77. Qe7+ {[%emt 0:00:12]} Kb6 {[%emt 0:00:36]} 78. Qf6+ {[%emt 0:00:18]} Kb7 {[%emt 0:00:27]} 79. Qf5 {[%emt 0:01:17]} Kb6 {[%emt 0:00:40]} 80. Qf6+ {[%emt 0:01:06]} Kb7 {[%emt 0:00:01]} 81. Qe7+ {[%emt 0:00:28]} Kb6 {[%emt 0:00:13]} 82. Qd6+ {[%emt 0:00:17]} Kb7 {[%emt 0:00:19]} 83. Qd5+ {[%emt 0:00:41]} Kb6 {[%emt 0:00:16]} 84. Qa5+ {[%emt 0:00:43]} Kb7 {[%emt 0:00:30]} 85. Qb5+ {[%emt 0:00:00]} Kc7 {[%emt 0:00:00]} 86. Qc4+ {[%emt 0:00:13]} Kb7 {[%emt 0:00:00]} 87. b5 {[%emt 0:00:00]} Qg4+ {[%emt 0:02:36]} 88. Kf6 {[%emt 0:00:26]} Qf4+ {[%emt 0:01:06]} 89. Ke6 {[%emt 0:00:14]} Qg4+ {[%emt 0:00:00]} 90. Kd6 {[%emt 0:00:35]} Qg6+ {[%emt 0:00:14]} 91. Ke7 {[%emt 0:01:25]} Qh7+ {[%emt 0:00:16]} 92. Kd6 {[%emt 0:00:53]} Qg6+ {[%emt 0:00:01]} 93. Kxe5 {[%emt 0:01:04]} Qg7+ {[%emt 0:00:04]} 94. Kd5 {[%emt 0:00:37]} Qd7+ {[%emt 0:00:13]} 95. Kc5 {[%emt 0:00:17]} Qe7+ {[%emt 0:01:11]} 96. Kd4 {[%emt 0:00:06]} Qf6+ {[%emt 0:00:00]} 97. e5 {[%emt 0:00:13]} Qf2+ {[%emt 0:00:08]} 98. Kd5 {[%emt 0:00:15]} Qd2+ {[%emt 0:01:58]} 99. Qd4 {[%emt 0:00:15]} Qg5 {[%emt 0:00:31]} 100. Kc4 {[%emt 0:01:14]} Qc1+ {[%emt 0:00:20]} 101. Qc3 {[%emt 0:00:11]} Qf4+ {[%emt 0:00:49]} 102. Kb3 {[%emt 0:00:23]} Qf7+ {[%emt 0:00:24]} 103. Kb2 {[%emt 0:00:51]} Qf2+ {[%emt 0:00:12]} 104. Ka3 {[%emt 0:00:28]} Qf8+ {[%emt 0:00:02]} 105. Ka4 {[%emt 0:00:12]} Qa8+ {[%emt 0:01:37]} 106. Qa5 {[%emt 0:00:02]} Qh8 {[%emt 0:00:32]} 107. Qa6+ {[%emt 0:00:09]} Kb8 {[%emt 0:00:30]} 108. Qd6+ {[%emt 0:00:21]} Kb7 {[%emt 0:00:21]} 109. Ka5 {[%emt 0:00:34]} Qh2 {[%emt 0:00:23]} 110. Qd5+ {[%emt 0:00:57]} Kb8 {[%emt 0:00:23]} 111. Ka6 {[%emt 0:00:27]} Qh7 {[%emt 0:00:48]} 112. Qd8# {[%emt 0:00:49]} 1-0